lending/lending_fUSD_20241005
["ID","MTS","AMOUNT","RATE_DAILY","PERIOD"]
[339862738,1728087044027,-500.0,0.00036986,120]
[339862739,1728087044036,-500.0,0.00036986,120]
[339862740,1728087044045,-500.0,0.00036986,120]
[339862741,1728087044054,-500.0,0.00036986,120]
[339862742,1728087044063,-500.0,0.00036986,120]
[339862743,1728087044073,-658.99,0.00036986,120]
[339862744,1728087044082,-450.0,0.00036986,120]
[339862745,1728087044091,-500.0,0.00036986,120]
[339862746,1728087044100,-500.0,0.00036986,120]
[339862747,1728087044110,-500.0,0.00036986,120]
[339862748,1728087044119,-500.0,0.00036986,120]
[339862749,1728087044129,-500.0,0.00036986,120]
[339862750,1728087044138,-500.0,0.00036986,120]
[339862751,1728087044148,-582.08,0.00036986,120]
[339862752,1728087044158,-500.0,0.00036986,120]
[339862753,1728087044167,-500.0,0.00036986,120]
[339862754,1728087044176,-500.0,0.00036986,120]
[339862755,1728087044187,-500.0,0.00036986,120]
[339862756,1728087044196,-500.0,0.00036986,120]
[339862757,1728087044205,-500.0,0.00036986,120]
[339862758,1728087044215,-500.0,0.00036986,120]
[339862759,1728087044224,-500.0,0.00036986,120]
[339862760,1728087044234,-1116.51,0.00036986,120]
[339862761,1728087044243,-500.0,0.00036986,120]
[339862762,1728087044255,-596.93,0.00036986,24]
[339862763,1728087044266,-500.0,0.00036986,120]
[339862764,1728087044276,-500.0,0.00036986,120]
[339862765,1728087044286,-500.0,0.00036986,120]
[339862766,1728087044296,-500.0,0.00036986,120]
[339862767,1728087044306,-1254.44,0.00036986,120]
[339862768,1728087044317,-500.0,0.00036986,120]
[339862769,1728087044327,-500.0,0.00036986,120]
[339862770,1728087044337,-701.81,0.00036986,120]
[339862771,1728087044347,-500.0,0.00036986,120]
[339862772,1728087044357,-500.0,0.00036986,120]
[339862773,1728087044366,-500.0,0.00036986,120]
[339862774,1728087044375,-500.0,0.00036986,120]
[339862775,1728087044385,-500.0,0.00036986,120]
[339862776,1728087044395,-500.0,0.00036986,120]
[339862777,1728087044405,-500.0,0.00036986,120]
[339862778,1728087044414,-500.0,0.00036986,120]
[339862779,1728087044423,-500.0,0.00036986,120]
[339862780,1728087044433,-500.0,0.00036986,120]
[339862781,1728087044443,-500.0,0.00036986,120]
[339862782,1728087044453,-1039.58,0.00036986,120]
[339862783,1728087044463,-815.53,0.00036986,120]
[339862784,1728087044472,-500.0,0.00036986,120]
[339862785,1728087044482,-500.0,0.00036986,120]
[339862786,1728087044492,-500.0,0.00036986,120]
[339862787,1728087044501,-596.81,0.00036986,120]
[339862788,1728087044511,-500.0,0.00036986,120]
[339862789,1728087044665,-1617.11,0.00036986,120]
[339862790,1728087044674,-533.52,0.00036986,120]
[339862791,1728087044684,-403.28334188,0.00036986,120]
[339862792,1728087044698,-606.04,0.00036986,120]
[339862793,1728087044708,-1380.38,0.00036986,120]
[339862794,1728087044717,-500.0,0.00036986,120]
[339862795,1728087044726,-500.0,0.00036986,120]
[339862796,1728087044738,-500.0,0.00036986,120]
[339862797,1728087044747,-738.71,0.00036986,120]
[339862798,1728087044758,-500.0,0.00036986,120]
[339862799,1728087044767,-500.0,0.00036986,120]
[339862800,1728087044777,-698.39,0.00036986,120]
[339862801,1728087044786,-500.0,0.00036986,120]
[339862802,1728087044796,-500.0,0.00036986,120]
[339862803,1728087044806,-500.0,0.00036986,120]
[339862804,1728087044816,-500.0,0.00036986,120]
[339862805,1728087044826,-500.0,0.00036986,120]
[339862806,1728087044835,-500.0,0.00036986,120]
[339862807,1728087044844,-500.0,0.00036986,120]
[339862808,1728087044854,-500.0,0.00036986,120]
[339862809,1728087044863,-500.0,0.00036986,120]
[339862810,1728087044873,-500.0,0.00036986,120]
[339862811,1728087044882,-500.0,0.00036986,120]
[339862812,1728087044892,-500.0,0.00036986,120]
[339862813,1728087044901,-500.0,0.00036986,120]
[339862814,1728087044911,-598.99,0.00036986,120]
[339862815,1728087044920,-500.0,0.00036986,120]
[339862816,1728087044930,-915.83,0.00036986,120]
[339862817,1728087044941,-500.0,0.00036986,30]
[339862818,1728087044950,-500.0,0.00036986,120]
[339862819,1728087044960,-500.0,0.00036986,120]
[339862820,1728087044969,-500.0,0.00036986,120]
[339862821,1728087044978,-500.0,0.00036986,21]
[339862822,1728087044988,-500.0,0.00036986,120]
[339862823,1728087044998,-500.0,0.00036986,120]
[339862824,1728087045007,-500.0,0.00036986,120]
[339862825,1728087045017,-500.0,0.00036986,120]
[339862826,1728087045026,-500.0,0.00036986,120]
[339862827,1728087045035,-2358.4,0.00036986,120]
[339862828,1728087045045,-500.0,0.00036986,120]
[339862829,1728087045054,-500.0,0.00036986,120]
[339862830,1728087045064,-500.0,0.00036986,120]
[339862831,1728087045073,-500.0,0.00036986,120]
[339862832,1728087045083,-708.81,0.00036986,120]
[339862833,1728087045093,-500.0,0.00036986,120]
[339862834,1728087045103,-500.0,0.00036986,120]
[339862835,1728087045113,-500.0,0.00036986,120]
[339862836,1728087045123,-1530.74,0.00036986,120]
[339862837,1728087045132,-500.0,0.00036986,120]
[339862838,1728087045142,-500.0,0.00036986,120]
[339862839,1728087045152,-176.39906421,0.00036986,120]
[339862840,1728087045161,-500.0,0.00036986,120]
[339862841,1728087045171,-500.0,0.00036986,120]
[339862842,1728087045181,-500.0,0.00036986,120]
[339862843,1728087045190,-500.0,0.00036986,120]
[339862844,1728087045200,-500.0,0.00036986,120]
[339862845,1728087045209,-768.03,0.00036986,120]
[339862846,1728087045219,-500.0,0.00036986,120]
[339862847,1728087045228,-500.0,0.00036986,120]
[339862848,1728087045238,-619.01,0.00036986,120]
[339862849,1728087045248,-500.0,0.00036986,120]
[339862850,1728087045259,-500.0,0.00036986,120]
[339862851,1728087045269,-500.0,0.00036986,120]
[339862852,1728087045278,-511.71,0.00036986,120]
[339862853,1728087045288,-500.0,0.00036986,120]
[339862854,1728087045297,-500.0,0.00036986,120]
[339862855,1728087045306,-623417.92596281,0.00037,15]
[339862856,1728087045326,-10109.36299386,0.00037,15]
[339862857,1728087045338,-1366.38075738,0.00037,15]
[339862858,1728087045375,-902.16144431,0.00037,15]
[339862859,1728087045386,-124083.35302252,0.00037,15]
[339862860,1728087045398,-2487.45317352,0.00037,15]
[339862861,1728087045413,-939.63137312,0.00037,15]
[339862862,1728087045425,-327.36881264,0.00037,15]
[339862863,1728087045437,-470.89476816,0.00037,15]
[339862864,1728087045499,-1146.85853294,0.00035016,50]
[339862865,1728087045511,-353.14146706,0.00035016,50]
[339862866,1728087045520,-1387.48853294,0.00037,15]
[339862867,1728087045536,-1087.83738527,0.00037,15]
[339862868,1728087045551,-70791.99999999,0.00037,15]
[339862869,1728087045563,-1352.28155867,0.00037,15]
[339862870,1728087045574,-5436.26115702,0.00037,15]
[339862872,1728087046069,-349.99877428,0.00036055,2]
[339862873,1728087046080,-73.34122572,0.00036055,2]
[339862874,1728087046090,-2622.50711668,0.00037,15]
[339862875,1728087046123,-500.0,0.00036986,120]
[339862876,1728087046132,-359.59283247,0.00037,15]
[339862877,1728087046144,-287.88767852,0.00037,15]
[339862878,1728087046229,-369.9210237,0.00036986,120]
[339862879,1728087046240,-130.0789763,0.00036986,120]
[339862880,1728087046250,-3853.24960483,0.00037,15]
[339862881,1728087046286,-12854.29632384,0.00037,15]
[339862882,1728087046297,-1571.28729515,0.00037,15]
[339862883,1728087046309,-2301.5009,0.00037,15]
[339862884,1728087046320,-335.451,0.00037,15]
[339862885,1728087099778,162.83,0.00010959,2]
[339862886,1728087181332,300.0,0.00019725,2]
[339862890,1728087999920,7442.03737093,0.00012666,2]
[339862891,1728087999949,5968.20346558,0.00012666,2]
[339862892,1728087999973,1982.49698252,0.00012666,2]
[339862893,1728088047625,1939.10268089,0.0001277,2]
[339862896,1728088079334,5162.41033659,0.00012899,2]
[339862897,1728088079356,9084.01,0.00012899,2]
[339862898,1728088079379,6375.3483994,0.00012899,2]
[339862899,1728088112396,170.36,0.00010959,2]
[339862913,1728088232123,-290.832,0.00024699,2]
[339862914,1728088232134,-227.9280966,0.00024699,2]
[339862915,1728088232143,-95.9335234,0.00024798,2]
[339862916,1728088232179,-54.0664766,0.00024798,2]
[339862917,1728088232189,-87386.14890959,0.00024799,7]
[339862918,1728088232236,-460.43123519,0.00024799,7]
[339862919,1728088232247,-1525.1233529,0.00024799,7]
[339862926,1728088238084,-518.76009659,0.00024766,2]
[339862927,1728088238094,-4224.17810319,0.00024799,7]
[339862928,1728088238141,-275.74697225,0.00024799,7]
[339862929,1728088238152,-500.0,0.00024932,2]
[339862930,1728088238162,-580.38,0.00025124,9]
[339862931,1728088238171,-182.913,0.00025124,9]
[339862932,1728088238179,-156.43012625,0.000274,2]
[339862937,1728088240137,-349.63949075,0.000274,2]
[339862938,1728088240952,-518.76009659,0.00024832,2]
[339862939,1728088240962,-103.52497741,0.000274,2]
[339862940,1728088240973,-1792.940474,0.000274,2]
[339862941,1728088241116,-5025.928769,0.000274,2]
[339862942,1728088241128,-2396.58360006,0.000274,2]
[339862975,1728088619184,250.0,0.00013,2]
[339863004,1728089432611,-300.0,0.00019725,2]
[339863005,1728089432620,-6.48999997,0.000224,2]
[339863044,1728089438352,-2222.99999999,0.000224,2]
[339863045,1728089438366,-1473.84986302,0.000224,2]
[339863046,1728089438407,-1241.05,0.000224,2]
[339863047,1728089438418,-4314.98017366,0.000224,2]
[339863048,1728089438430,-2552.92518416,0.000224,2]
[339863049,1728089438445,-815.0,0.000224,2]
[339863050,1728089438462,-1400.2857462,0.000224,2]
[339863051,1728089440319,-429.15446819,0.000224,2]
[339863052,1728089441170,-359.305,0.000224,2]
[339863053,1728089441225,-344.62556429,0.000224,2]
[339863054,1728089441239,-336.7082906,0.000224,2]
[339863055,1728089441338,-1703.65891765,0.000224,2]
[339863056,1728089441349,-676.78766256,0.000224,2]
[339863057,1728089441362,-1064.4559759,0.000224,2]
[339863058,1728089441374,-288.22722116,0.000224,2]
[339863059,1728089441386,-552.33090042,0.000224,2]
[339863060,1728089441401,-950.72932172,0.000224,2]
[339863061,1728089441412,-1980.46927494,0.000224,2]
[339863062,1728089441423,-985.79132893,0.000224,2]
[339863063,1728089441435,-206.17510664,0.000224,2]
[339863064,1728089441445,-561.22489336,0.000232,3]
[339863065,1728089441456,-10951.77510664,0.000232,3]
[339863066,1728089441465,-6193.53017625,0.00024,5]
[339863067,1728089441481,-1043.21965598,0.00024,5]
[339863068,1728089441495,-4276.25016777,0.00024,5]
[339863069,1728089441505,-500.0,0.00024932,2]
[339863070,1728089441514,-534.666,0.00025177,9]
[339863071,1728089441523,-182.94,0.00025177,9]
[339863072,1728089441533,-499.99,0.00025177,2]
[339863073,1728089441542,-1592.4,0.000255,2]
[339863074,1728089441552,-29999.99,0.000255,2]
[339863075,1728089441561,-205.25829414,0.00028815,2]
[339863076,1728089441571,-417.98661364,0.00028815,2]
[339863077,1728089441580,-22338.66754218,0.00028816,15]
[339863078,1728089441590,-109386.20800308,0.00028816,5]
[339863079,1728089441601,-2091206.33057727,0.00028816,5]
[339863080,1728089441610,-12305.23,0.00029199,2]
[339863081,1728089441619,-236.93,0.00030216,2]
[339863082,1728089441628,-21731.0,0.00030703,4]
[339863083,1728089441638,-1548.95,0.00031223,2]
[339863084,1728089441647,-1708.93,0.00031254,2]
[339863085,1728089441656,-250.0,0.0003138,2]
[339863086,1728089441665,-218.38,0.00032022,60]
[339863087,1728089441674,-382.43,0.0003208,120]
[339863088,1728089441683,-157.99,0.00032087,2]
[339863089,1728089441693,-799.0,0.000321,4]
[339863090,1728089441702,-538.44,0.00032133,2]
[339863091,1728089441711,-250.0,0.00032134,2]
[339863092,1728089441720,-1000.0,0.00032188,2]
[339863093,1728089441730,-758.86,0.00032264,2]
[339863094,1728089441739,-236.93,0.0003248,2]
[339863095,1728089441748,-1500.0,0.00032877,50]
[339863096,1728089441757,-150.75,0.00033018,120]
[339863097,1728089441767,-195.12,0.00033363,120]
[339863098,1728089441776,-169.62,0.00033992,120]
[339863099,1728089441787,-238.48,0.00034137,2]
[339863100,1728089441796,-10105.5081,0.00034551,2]
[339863101,1728089441805,-4534.5128,0.00034551,2]
[339863102,1728089441814,-283.4059,0.00034551,2]
[339863103,1728089441824,-1000.0,0.00034603,2]
[339863104,1728089441834,-1874.1786,0.00034603,2]
[339863105,1728089441843,-1835.28520303,0.00034607,6]
[339863106,1728089441853,-1835.28520303,0.00034607,6]
[339863107,1728089441862,-100000.0,0.00034703,30]
[339863108,1728089441871,-236.93,0.00034744,2]
[339863109,1728089441880,-180.0,0.0003492,120]
[339863110,1728089441889,-643.39540466,0.00035,30]
[339863111,1728089441898,-401.28558111,0.00035452,2]
[339863112,1728089441907,-250.0,0.00035552,2]
[339863113,1728089441916,-534.0,0.00035562,2]
[339863114,1728089441926,-534.0,0.00035562,2]
[339863115,1728089441935,-534.0,0.00035562,2]
[339863116,1728089441945,-534.0,0.00035562,2]
[339863117,1728089441954,-534.0,0.00035562,2]
[339863118,1728089441963,-943.08,0.00035562,2]
[339863119,1728089441973,-5351.53457509,0.00035693,6]
[339863120,1728089441987,-200000.0,0.00035703,60]
[339863121,1728089441997,-846.5,0.00035753,2]
[339863122,1728089442006,-166.67,0.00035764,2]
[339863123,1728089442015,-808.0,0.00035851,2]
[339863124,1728089442025,-1115.977,0.00035851,2]
[339863125,1728089442034,-559.0,0.00035851,2]
[339863126,1728089442045,-288.394,0.00035851,2]
[339863127,1728089442055,-150.0,0.00035851,2]
[339863128,1728089442064,-150.0,0.00035851,2]
[339863129,1728089442073,-296.0,0.00035851,2]
[339863130,1728089442083,-486.50314319,0.0003589,6]
[339863131,1728089442092,-7500.0,0.000359,2]
[339863132,1728089442103,-177.93034905,0.000359,2]
[339863133,1728089442112,-225.32884433,0.000359,10]
[339863134,1728089442121,-863.24787502,0.000359,2]
[339863135,1728089442132,-200.52580902,0.00035973,5]
[339863136,1728089442142,-591.19358623,0.00035973,2]
[339863137,1728089442151,-2462.79192693,0.00035991,2]
[339863138,1728089442162,-165.67827755,0.00035992,8]
[339863139,1728089442171,-2000.0,0.00035999,2]
[339863140,1728089442180,-1062.0,0.00036,5]
[339863141,1728089442190,-2778285.69762713,0.00036,30]
[339863142,1728089442202,-303682.67685374,0.00036,30]
[339863143,1728089442213,-2439.14814662,0.00036,30]
[339863144,1728089442224,-289.10683403,0.00036,30]
[339863158,1728089443592,-1012.97035628,0.00036,30]
[339863159,1728089443603,-1039.9999,0.00036,30]
[339863160,1728089443615,-20492.59590905,0.00036,30]
[339863161,1728089443626,-498.7999998,0.00036,30]
[339863162,1728089443637,-4011.29080858,0.00036,30]
[339863163,1728089443650,-4650.0,0.00036,30]
[339863164,1728089443663,-2961.33869141,0.00036,30]
[339863165,1728089443674,-4720.74530425,0.00036,30]
[339863166,1728089443685,-2350.89459176,0.00036,30]
[339863167,1728089443696,-10864.25129985,0.00036,30]
[339863168,1728089443707,-2851.5,0.00036,30]
[339863169,1728089443722,-877.60613837,0.00036,30]
[339863170,1728089443734,-666.41,0.00036,30]
[339863171,1728089443745,-1507.29,0.00036,30]
[339863172,1728089443757,-22528.85265892,0.00036,30]
[339863173,1728089443768,-5130.95572728,0.00036,30]
[339863174,1728089443780,-1448.63415379,0.00036,30]
[339863175,1728089443791,-2971.4261541,0.00036,30]
[339863176,1728089443802,-256.33993841,0.00036,30]
[339863177,1728089443813,-1795.66259684,0.00036,30]
[339863178,1728089443824,-3983.23472509,0.00036,30]
[339863179,1728089443835,-680.06549859,0.00036,30]
[339863182,1728089446334,-407.37144464,0.00036,30]
[339863183,1728089446347,-1523.78274965,0.00036,30]
[339863184,1728089446407,-19633.85880664,0.00036,30]
[339863185,1728089446444,-89270.32908214,0.00036,30]
[339863186,1728089446456,-1144.25759762,0.00036,30]
[339863187,1728089446499,-4215.85088527,0.00036,30]
[339863188,1728089446512,-389.71569304,0.00036,30]
[339863189,1728089446558,-1131.90187909,0.00036,30]
[339863190,1728089446571,-203856.62583767,0.00036,30]
[339863191,1728089446584,-1583.93695145,0.00036,30]
[339863192,1728089446596,-290.929047,0.00036,30]
[339863193,1728089446616,-332.78,0.00036,30]
[339863194,1728089446630,-599.38775637,0.00036,30]
[339863224,1728089727509,163.13,0.00010959,2]
[339863226,1728090421606,250.0,0.00013,2]
[339863252,1728090631498,-500.0,0.00024932,2]
[339863254,1728090631508,-799.0,0.00030708,5]
[339863256,1728090631517,-441.0,0.00030708,5]
[339863269,1728090631636,-358.0,0.00030708,5]
[339863270,1728090631646,-799.0,0.00030874,5]
[339863271,1728090631655,-1777.0,0.000315,4]
[339863272,1728090631665,-218.66,0.00032115,2]
[339863273,1728090631674,-799.0,0.00032499,5]
[339863274,1728090631684,-1208.26,0.00033033,30]
[339863275,1728090631693,-499.99,0.00033033,2]
[339863276,1728090631702,-1930.17,0.000335,3]
[339863277,1728090631712,-1409.45,0.0003379,2]
[339863278,1728090631721,-1500.0,0.0003381,50]
[339863279,1728090631730,-250.0,0.00033825,120]
[339863280,1728090631740,-2019.0,0.00033893,81]
[339863281,1728090631749,-150.0,0.00034094,2]
[339863282,1728090631759,-799.0,0.00034209,5]
[339863283,1728090631768,-250.0,0.00034251,2]
[339863284,1728090631778,-630.349,0.00034333,38]
[339863285,1728090631787,-176.698,0.00034333,38]
[339863286,1728090631797,-363.6,0.00034347,2]
[339863287,1728090631806,-218.66,0.00034379,2]
[339863288,1728090631818,-195.12,0.00034421,120]
[339863289,1728090631827,-1000.0,0.00034476,2]
[339863290,1728090631836,-1683.0859,0.00034603,2]
[339863291,1728090631846,-150.75,0.00034755,120]
[339863292,1728090631855,-250.04401004,0.0003499,2]
[339863293,1728090631864,-11335.78,0.00035,15]
[339863294,1728090631873,-150.0,0.0003537,2]
[339863295,1728090631883,-150.0,0.0003537,2]
[339863296,1728090631891,-150.0,0.0003537,2]
[339863297,1728090631901,-150.0,0.0003537,2]
[339863298,1728090631909,-150.0,0.0003537,2]
[339863299,1728090631918,-305.31,0.0003537,2]
[339863300,1728090631927,-201.54,0.00035423,120]
[339863301,1728090631935,-167.49,0.00035469,2]
[339863302,1728090631944,-534.0,0.00035699,2]
[339863303,1728090631954,-534.0,0.00035699,2]
[339863304,1728090631964,-534.0,0.00035699,2]
[339863305,1728090631974,-534.0,0.00035699,2]
[339863306,1728090631983,-534.0,0.00035699,2]
[339863307,1728090631992,-534.0,0.00035699,2]
[339863308,1728090632001,-534.0,0.00035699,2]
[339863309,1728090632010,-534.0,0.00035699,2]
[339863310,1728090632019,-534.0,0.00035699,2]
[339863311,1728090632028,-534.0,0.00035699,2]
[339863312,1728090632040,-534.0,0.00035699,2]
[339863313,1728090632049,-534.0,0.00035699,2]
[339863314,1728090632058,-534.0,0.00035699,2]
[339863315,1728090632070,-534.0,0.00035699,2]
[339863316,1728090632080,-534.0,0.00035699,2]
[339863317,1728090632089,-687.03,0.00035699,2]
[339863318,1728090632098,-91553.5072597,0.00035708,120]
[339863319,1728090632109,-749.60047608,0.00035708,120]
[339863320,1728090632120,-356.88107954,0.00035708,120]
[339863321,1728090632132,-871.5527439,0.00035708,120]
[339863322,1728090632144,-2737.33492461,0.00035708,120]
[339863323,1728090632155,-1587.35583697,0.00035708,120]
[339863324,1728090632170,-498.64727009,0.00035708,120]
[339863325,1728090632182,-250.33780553,0.00035708,120]
[339863326,1728090632196,-2425.5691086,0.00035708,120]
[339863327,1728090632207,-1280.01432601,0.00035708,120]
[339863328,1728090632221,-1032.01313129,0.00035708,120]
[339863329,1728090632233,-2810.31557355,0.00035708,120]
[339863330,1728090632244,-17196.60028437,0.00035708,120]
[339863331,1728090632255,-3498.10131452,0.00035708,120]
[339863333,1728090637467,-572.7999,0.00035708,120]
[339863334,1728090637530,-255.17,0.00035708,120]
[339863335,1728090637544,-5252.44382823,0.00035708,120]
[339863336,1728090637555,-2216.68024884,0.00035708,120]
[339863337,1728090637566,-11135.00961967,0.00035708,120]
[339863338,1728090637578,-284.09169398,0.00035708,120]
[339863339,1728090637591,-3791.46814228,0.00035708,120]
[339863340,1728090637602,-6094.21,0.00035708,120]
[339863341,1728090637652,-4058.8601789,0.00035708,120]
[339863342,1728090637663,-398.01947956,0.00035708,120]
[339863343,1728090637770,-376.0213201,0.00035708,120]
[339863344,1728090637781,-488.66607066,0.00035708,120]
[339863345,1728090637793,-437.70943335,0.00035708,120]
[339863346,1728090637804,-1197.7017767,0.00035708,120]
[339863347,1728090637815,-255.0,0.00035708,120]
[339863348,1728090637827,-476.81295156,0.00035708,120]
[339863350,1728090637837,-371.59199,0.00035708,120]
[339863354,1728090639470,-27116.02287777,0.00035708,120]
[339863355,1728090639481,-281.2581927,0.00035708,120]
[339863356,1728090639532,-3497.13351357,0.00035708,120]
[339863357,1728090639596,-4821.6798791,0.00035708,120]
[339863358,1728090639607,-308.94361421,0.00035708,120]
[339863359,1728090639618,-327.32751145,0.00035708,120]
[339863360,1728090639658,-522.77982189,0.00035708,120]
[339863361,1728090639722,-629.9679686,0.00035708,120]
[339863362,1728090639789,-1113.13601169,0.00035708,120]
[339863363,1728090639801,-7971.66284043,0.00035708,120]
[339863364,1728090639811,-1340.75083003,0.00035799,2]
[339863365,1728090639820,-1340.75083003,0.0003585,2]
[339863366,1728090639831,-9155.11522116,0.00035899,15]
[339863367,1728090639842,-2778.37187532,0.00035899,15]
[339863376,1728090642665,-197.49141036,0.00035899,15]
[339863377,1728090642675,-302.50858964,0.000359,2]
[339863378,1728090642686,-294.875,0.000359,2]
[339863379,1728090642698,-61217.89892898,0.000359,2]
[339863388,1728090645850,-2466.58730422,0.000359,2]
[339863421,1728090839664,169.28,0.00010959,2]
[339863422,1728090863784,255.0,0.00018,2]
[339863423,1728091677744,21750.52106026,0.00011,2]
[339863424,1728091709713,3033.15616005,0.00010998,2]
[339863445,1728091831934,-401.554,0.00030715,30]
[339863446,1728091831943,-170.57948406,0.000314,2]
[339863448,1728091832229,-43.922759,0.000314,2]
[339863450,1728091832238,-2358.0,0.000315,4]
[339863452,1728091832248,-666.372,0.000315,29]
[339863454,1728091832259,-172.536,0.000315,29]
[339863456,1728091832268,-215.75,0.00032273,2]
[339863458,1728091832277,-150.0,0.000324,7]
[339863460,1728091832288,-215.0,0.0003297,2]
[339863462,1728091832299,-1190.12499441,0.0003297,2]
[339863465,1728091832312,-11785.98500559,0.0003297,2]
[339863466,1728091832321,-6354.77,0.0003297,2]
[339863467,1728091832329,-499.99,0.0003297,2]
[339863468,1728091832340,-150.0,0.000336,7]
[339863469,1728091832349,-819.95,0.000336,2]
[339863470,1728091832358,-2538.86,0.000336,2]
[339863471,1728091832367,-156.30487432,0.00033781,7]
[339863472,1728091832376,-858.41,0.0003384,60]
[339863473,1728091832386,-215.0,0.0003387,2]
[339863474,1728091832395,-250.0,0.00033998,2]
[339863475,1728091832405,-150.75,0.00034013,120]
[339863476,1728091832414,-1992.57,0.00034013,2]
[339863477,1728091832424,-7510.45,0.00034057,2]
[339863478,1728091832434,-1500.0,0.00034066,50]
[339863479,1728091832444,-151.03,0.00034074,2]
[339863480,1728091832453,-250.0,0.00034096,120]
[339863481,1728091832462,-3311.65,0.00034135,2]
[339863482,1728091832472,-950.66347074,0.00034154,84]
[339863483,1728091832484,-685.05424735,0.00034154,84]
[339863487,1728091837795,-383.28228191,0.00034154,84]
[339863489,1728091837804,-188.46,0.00034212,2]
[339863490,1728091837814,-161.23,0.00034345,120]
[339863491,1728091837823,-1000.0,0.00034464,2]
[339863492,1728091837832,-427.51,0.00034464,2]
[339863493,1728091837841,-215.75,0.00034537,2]
[339863494,1728091837851,-250.0,0.00034689,2]
[339863495,1728091837860,-215.0,0.0003477,2]
[339863496,1728091837871,-150.0,0.000348,7]
[339863497,1728091837881,-565.38,0.00034809,2]
[339863498,1728091837890,-8262.38107031,0.00034819,30]
[339863499,1728091837899,-446.91694335,0.000349,2]
[339863500,1728091837911,-500.0,0.00035,120]
[339863501,1728091837922,-565.38,0.00035015,2]
[339863502,1728091837934,-365.31,0.00035026,120]
[339863503,1728091837946,-446.91694334,0.000354,2]
[339863504,1728091837956,-2745.1818,0.00035479,10]
[339863505,1728091837967,-215.0,0.0003568,2]
[339863506,1728091837977,-1421.0124,0.000358,60]
[339863507,1728091837986,-565.38,0.0003588,2]
[339863508,1728091837996,-565.38,0.0003588,2]
[339863509,1728091838005,-565.38,0.00035888,2]
[339863510,1728091838015,-565.38,0.00035888,2]
[339863511,1728091838025,-500.0,0.00035889,15]
[339863512,1728091838036,-565.38,0.0003589,2]
[339863513,1728091838045,-17170.1371,0.0003589,2]
[339863514,1728091838056,-11804.5917127,0.00035898,15]
[339863515,1728091838065,-156.10988812,0.000359,8]
[339863516,1728091838075,-222.0,0.000359,2]
[339863517,1728091838085,-7500.0,0.000359,2]
[339863518,1728091838095,-206.00000065,0.000359,2]
[339863519,1728091838105,-1666.74535468,0.000359,8]
[339863520,1728091838114,-446.91694334,0.000359,2]
[339863521,1728091838123,-551.5312,0.000359,2]
[339863522,1728091838132,-500.0,0.00035973,5]
[339863523,1728091838142,-565.38,0.00035989,2]
[339863524,1728091838152,-565.38,0.0003599,2]
[339863525,1728091838163,-206.59,0.0003599,3]
[339863526,1728091838172,-469.28064036,0.0003599,2]
[339863527,1728091838182,-565.38,0.0003599,2]
[339863528,1728091838192,-565.38,0.0003599,2]
[339863529,1728091838202,-565.38,0.0003599,2]
[339863530,1728091838212,-565.38,0.0003599,2]
[339863531,1728091838221,-565.38,0.0003599,2]
[339863532,1728091838231,-565.38,0.0003599,2]
[339863533,1728091838241,-565.38,0.0003599,2]
[339863534,1728091838250,-565.38,0.0003599,2]
[339863535,1728091838260,-565.38,0.0003599,2]